[Event "Late-Titled-Tuesday-Blitz-May-14-2024"]
[Site "Chess.com"]
[Date "2024.05.14"]
[Round "4"]
[White "Rutricks"]
[Black "egnfanclub"]
[Result "0-1"]
[WhiteElo "2640"]
[BlackElo "2383"]
[TimeControl "180+1"]
[EndTime "14:40:03 PDT"]
[Termination "egnfanclub won by resignation"]

1. f4 {[%clk 0:02:46.7]} 1... e5 {[%clk 0:02:59.4]} 2. fxe5 {[%clk 0:02:45.3]}
2... d6 {[%clk 0:02:59.6]} 3. e4 {[%clk 0:02:43.6]} 3... Qh4+ {[%clk 0:02:56.8]}
4. Ke2 {[%clk 0:02:43.5]} 4... Qxe4+ {[%clk 0:02:56.8]} 5. Kf2 {[%clk
0:02:43.5]} 5... dxe5 {[%clk 0:02:44.6]} 6. d4 {[%clk 0:02:42.9]} 6... Qxd4+
{[%clk 0:02:39.6]} 7. Qxd4 {[%clk 0:02:41.1]} 7... exd4 {[%clk 0:02:40.5]} 8.
Nf3 {[%clk 0:02:41.8]} 8... Nc6 {[%clk 0:02:40.2]} 9. Bf4 {[%clk 0:02:40.8]}
9... Bf5 {[%clk 0:02:31.1]} 10. Bb5 {[%clk 0:02:34.9]} 10... O-O-O {[%clk
0:02:30.5]} 11. Bxc6 {[%clk 0:02:25]} 11... bxc6 {[%clk 0:02:30.3]} 12. Ne5
{[%clk 0:02:25.9]} 12... Bd6 {[%clk 0:02:21.1]} 13. Bg3 {[%clk 0:02:20.1]} 13...
Bxe5 {[%clk 0:02:16.3]} 14. Bxe5 {[%clk 0:02:21]} 14... f6 {[%clk 0:02:15.5]}
15. Bf4 {[%clk 0:02:21.6]} 15... g5 {[%clk 0:02:13.8]} 16. Bd2 {[%clk
0:02:20.7]} 16... Bxc2 {[%clk 0:02:12.1]} 17. Na3 {[%clk 0:02:21.3]} 17... Be4
{[%clk 0:02:10.7]} 18. Rac1 {[%clk 0:02:21.9]} 18... Ne7 {[%clk 0:02:10.1]} 19.
Rhe1 {[%clk 0:02:16.5]} 19... f5 {[%clk 0:02:04.2]} 20. Bxg5 {[%clk 0:02:16.5]}
20... Rde8 {[%clk 0:02:02.2]} 21. Nc2 {[%clk 0:02:05]} 21... Rhg8 {[%clk
0:01:57.3]} 22. Bxe7 {[%clk 0:01:52.1]} 22... Rxg2+ {[%clk 0:01:56.8]} 23. Kf1
{[%clk 0:01:52.5]} 23... Rxc2 {[%clk 0:01:47.6]} 24. Rxc2 {[%clk 0:01:41.9]}
24... Bxc2 {[%clk 0:01:48.5]} 25. Bc5 {[%clk 0:01:42.2]} 25... Rd8 {[%clk
0:01:32.1]} 26. Ke2 {[%clk 0:01:42]} 26... Be4 {[%clk 0:01:23.6]} 27. Rg1 {[%clk
0:01:38]} 27... d3+ {[%clk 0:01:22.1]} 28. Kd2 {[%clk 0:01:38]} 28... Rd5 {[%clk
0:01:16.8]} 29. Bxa7 {[%clk 0:01:15.8]} 29... Ra5 {[%clk 0:00:54.6]} 30. Bd4
{[%clk 0:01:15.1]} 30... Rxa2 {[%clk 0:00:53.6]} 31. Rg7 {[%clk 0:01:13.9]}
31... c5 {[%clk 0:00:35.2]} 32. Be5 {[%clk 0:01:13.4]} 32... c6 {[%clk
0:00:34.1]} 33. Rxh7 {[%clk 0:01:10.1]} 33... Ra1 {[%clk 0:00:32.1]} 34. Bd6
{[%clk 0:00:26.1]} 34... Rg1 {[%clk 0:00:31.1]} 35. Bf4 {[%clk 0:00:12.9]} 35...
Rg2+ {[%clk 0:00:31.3]} 36. Kc3 {[%clk 0:00:08.3]} 36... Rc2+ {[%clk 0:00:28.7]}
37. Kb3 {[%clk 0:00:08.7]} 37... Rf2 {[%clk 0:00:28.5]} 38. Be3 {[%clk
0:00:06.9]} 38... Rf3 {[%clk 0:00:24.7]} 39. Bd2 {[%clk 0:00:06.9]} 39... Rf2
{[%clk 0:00:24.4]} 40. Kc3 {[%clk 0:00:07.5]} 40... Rg2 {[%clk 0:00:18.5]} 41.
h4 {[%clk 0:00:07.7]} 41... f4 {[%clk 0:00:16.2]} 42. Rf7 {[%clk 0:00:07.5]}
42... f3 {[%clk 0:00:15.5]} 43. h5 {[%clk 0:00:08]} 43... Rh2 {[%clk 0:00:14.5]}
44. h6 {[%clk 0:00:08.2]} 44... Kd8 {[%clk 0:00:13.3]} 45. Rf4 {[%clk
0:00:06.5]} 45... Bh7 {[%clk 0:00:11.7]} 46. Kc4 {[%clk 0:00:06.6]} 46... Rxd2
{[%clk 0:00:11.1]} 47. Rf7 {[%clk 0:00:05.4]} 47... Rc2+ {[%clk 0:00:11.2]} 48.
Kb3 {[%clk 0:00:05.5]} 48... d2 {[%clk 0:00:11.2]} 49. Rxh7 {[%clk 0:00:01.1]}
49... d1=Q {[%clk 0:00:11.5]} 50. Rh8+ {[%clk 0:00:01.7]} 50... Ke7 {[%clk
0:00:11.7]} 51. Ka3 {[%clk 0:00:02.3]} 51... Qa1+ {[%clk 0:00:11]} 0-1

[Event "Late-Titled-Tuesday-Blitz-May-14-2024"]
[Site "Chess.com"]
[Date "2024.05.14"]
[Round "4"]
[White "MarkusRagger"]
[Black "Akhayan"]
[Result "1-0"]
[WhiteElo "2810"]
[BlackElo "2440"]
[TimeControl "180+1"]
[EndTime "14:40:03 PDT"]
[Termination "MarkusRagger won on time"]

1. d4 {[%clk 0:03:00.9]} 1... Nf6 {[%clk 0:02:59.3]} 2. Nf3 {[%clk 0:03:00.2]}
2... g6 {[%clk 0:02:59.6]} 3. c4 {[%clk 0:02:59.8]} 3... Bg7 {[%clk 0:02:59.5]}
4. Nc3 {[%clk 0:02:57]} 4... d5 {[%clk 0:02:59.9]} 5. cxd5 {[%clk 0:02:51.2]}
5... Nxd5 {[%clk 0:02:59.5]} 6. e4 {[%clk 0:02:51.8]} 6... Nxc3 {[%clk
0:02:59.2]} 7. bxc3 {[%clk 0:02:52.7]} 7... O-O {[%clk 0:02:56.6]} 8. Be2 {[%clk
0:02:47.8]} 8... c5 {[%clk 0:02:56.8]} 9. O-O {[%clk 0:02:43.9]} 9... Bg4 {[%clk
0:02:49.4]} 10. Be3 {[%clk 0:02:42.2]} 10... cxd4 {[%clk 0:02:44]} 11. cxd4
{[%clk 0:02:41.5]} 11... Nc6 {[%clk 0:02:44.4]} 12. d5 {[%clk 0:02:40.4]} 12...
Bxf3 {[%clk 0:02:43.4]} 13. Bxf3 {[%clk 0:02:36.7]} 13... Na5 {[%clk 0:02:27.2]}
14. Rc1 {[%clk 0:02:29.1]} 14... a6 {[%clk 0:02:13.2]} 15. Bc5 {[%clk
0:01:55.2]} 15... b5 {[%clk 0:02:09]} 16. d6 {[%clk 0:01:51.7]} 16... exd6
{[%clk 0:02:00.8]} 17. Bxd6 {[%clk 0:01:44.7]} 17... Re8 {[%clk 0:01:54.4]} 18.
e5 {[%clk 0:01:14.2]} 18... Rc8 {[%clk 0:01:47.8]} 19. Rxc8 {[%clk 0:00:34.2]}
19... Qxc8 {[%clk 0:01:47.6]} 20. Bg4 {[%clk 0:00:34.8]} 20... Qd8 {[%clk
0:01:30.9]} 21. f4 {[%clk 0:00:31]} 21... Nc4 {[%clk 0:01:30.8]} 22. Bc5 {[%clk
0:00:30.3]} 22... Qc7 {[%clk 0:01:12.6]} 23. Bf2 {[%clk 0:00:29]} 23... Rd8
{[%clk 0:01:12.9]} 24. Qe2 {[%clk 0:00:21.1]} 24... h5 {[%clk 0:01:04.9]} 25.
Bf3 {[%clk 0:00:19.8]} 25... Nd2 {[%clk 0:00:56.4]} 26. Re1 {[%clk 0:00:20]}
26... Nxf3+ {[%clk 0:00:56.4]} 27. Qxf3 {[%clk 0:00:20.9]} 27... Qd7 {[%clk
0:00:46.5]} 28. e6 {[%clk 0:00:20.3]} 28... fxe6 {[%clk 0:00:45]} 29. Qe4 {[%clk
0:00:20.9]} 29... Qf7 {[%clk 0:00:43.1]} 30. h3 {[%clk 0:00:20.5]} 30... Kh7
{[%clk 0:00:42.4]} 31. Bg3 {[%clk 0:00:19.9]} 31... Re8 {[%clk 0:00:41.8]} 32.
Kh2 {[%clk 0:00:20]} 32... Qf5 {[%clk 0:00:40.1]} 33. Qc6 {[%clk 0:00:20.6]}
33... Re7 {[%clk 0:00:25.4]} 34. Qxa6 {[%clk 0:00:20.5]} 34... h4 {[%clk
0:00:23.6]} 35. Bxh4 {[%clk 0:00:19.5]} 35... Qxf4+ {[%clk 0:00:23.9]} 36. Bg3
{[%clk 0:00:20.1]} 36... Qf5 {[%clk 0:00:23]} 37. Qd6 {[%clk 0:00:20]} 37... Re8
{[%clk 0:00:19.8]} 38. Qd7 {[%clk 0:00:20.3]} 38... Rf8 {[%clk 0:00:13.4]} 39.
Qxe6 {[%clk 0:00:19.7]} 39... Qxe6 {[%clk 0:00:11.6]} 40. Rxe6 {[%clk
0:00:20.3]} 40... Ra8 {[%clk 0:00:12.1]} 41. Re7 {[%clk 0:00:20.7]} 41... Kg8
{[%clk 0:00:10.6]} 42. Rb7 {[%clk 0:00:20.8]} 42... Rxa2 {[%clk 0:00:09.8]} 43.
Rxb5 {[%clk 0:00:21.5]} 43... Ra6 {[%clk 0:00:09.4]} 44. Rb7 {[%clk 0:00:21.2]}
44... Re6 {[%clk 0:00:08]} 45. Bf4 {[%clk 0:00:21.3]} 45... Rc6 {[%clk
0:00:05.1]} 46. Kg3 {[%clk 0:00:21.4]} 46... Re6 {[%clk 0:00:04.8]} 47. Kf3
{[%clk 0:00:21.2]} 47... Bf8 {[%clk 0:00:04.1]} 48. h4 {[%clk 0:00:20.9]} 48...
Rc6 {[%clk 0:00:03.6]} 49. g3 {[%clk 0:00:21.1]} 49... Rc3+ {[%clk 0:00:03.6]}
50. Kg4 {[%clk 0:00:21.2]} 50... Rc6 {[%clk 0:00:04.2]} 51. Kg5 {[%clk
0:00:19.4]} 51... Ra6 {[%clk 0:00:03.3]} 52. Rd7 {[%clk 0:00:18.4]} 52... Rc6
{[%clk 0:00:02.8]} 53. Be5 {[%clk 0:00:17.9]} 53... Re6 {[%clk 0:00:02]} 54. Bf6
{[%clk 0:00:18]} 54... Rc6 {[%clk 0:00:01.1]} 55. Kxg6 {[%clk 0:00:18.4]} 1-0

[Event "Late-Titled-Tuesday-Blitz-May-14-2024"]
[Site "Chess.com"]
[Date "2024.05.14"]
[Round "4"]
[White "GothamChess"]
[Black "lucasran"]
[Result "0-1"]
[WhiteElo "2767"]
[BlackElo "2568"]
[TimeControl "180+1"]
[EndTime "14:40:04 PDT"]
[Termination "lucasran won on time"]

1. e4 {[%clk 0:03:00.9]} 1... c6 {[%clk 0:02:59.4]} 2. d4 {[%clk 0:03:01]} 2...
d5 {[%clk 0:03:00.3]} 3. f3 {[%clk 0:03:01.6]} 3... g6 {[%clk 0:03:00.2]} 4. Nc3
{[%clk 0:03:01.2]} 4... Bg7 {[%clk 0:03:00.5]} 5. Be3 {[%clk 0:03:00.4]} 5...
Qb6 {[%clk 0:03:00]} 6. Bd3 {[%clk 0:02:23.3]} 6... Qxb2 {[%clk 0:02:56.8]} 7.
Nge2 {[%clk 0:02:21.8]} 7... dxe4 {[%clk 0:02:36.1]} 8. fxe4 {[%clk 0:02:18.3]}
8... e5 {[%clk 0:02:35.3]} 9. Rb1 {[%clk 0:02:10.6]} 9... Qa3 {[%clk 0:02:34.6]}
10. d5 {[%clk 0:01:55.2]} 10... Nf6 {[%clk 0:02:31.6]} 11. Rb3 {[%clk
0:01:44.9]} 11... Qa5 {[%clk 0:02:23.1]} 12. h3 {[%clk 0:01:41.3]} 12... cxd5
{[%clk 0:02:03.4]} 13. Rb5 {[%clk 0:01:40.1]} 13... Qd8 {[%clk 0:01:26.9]} 14.
Nxd5 {[%clk 0:01:31.5]} 14... Nxd5 {[%clk 0:01:12.1]} 15. Rxd5 {[%clk
0:01:30.8]} 15... Qc7 {[%clk 0:01:12.2]} 16. Bc5 {[%clk 0:01:12.8]} 16... Be6
{[%clk 0:01:12.4]} 17. Bb5+ {[%clk 0:01:11.1]} 17... Nc6 {[%clk 0:01:12.2]} 18.
O-O {[%clk 0:00:59.9]} 18... a6 {[%clk 0:01:06.6]} 19. Ba4 {[%clk 0:00:48.6]}
19... b5 {[%clk 0:00:54.4]} 20. Bb3 {[%clk 0:00:43.6]} 20... Bxd5 {[%clk
0:00:51.4]} 21. exd5 {[%clk 0:00:35.4]} 21... Nd4 {[%clk 0:00:32.1]} 22. Bxd4
{[%clk 0:00:35.6]} 22... exd4 {[%clk 0:00:32.1]} 23. d6 {[%clk 0:00:36.3]} 23...
Qxd6 {[%clk 0:00:27.9]} 24. Rxf7 {[%clk 0:00:33.9]} 24... Be5 {[%clk 0:00:24.5]}
25. Qf1 {[%clk 0:00:25.7]} 25... Rf8 {[%clk 0:00:14.5]} 26. Qf3 {[%clk
0:00:25.6]} 26... Ra7 {[%clk 0:00:07.5]} 27. Rxf8+ {[%clk 0:00:20.2]} 27... Qxf8
{[%clk 0:00:08.4]} 28. Qc6+ {[%clk 0:00:18.4]} 28... Kd8 {[%clk 0:00:08.8]} 29.
Be6 {[%clk 0:00:10.2]} 29... Rc7 {[%clk 0:00:06]} 30. Qxa6 {[%clk 0:00:07]}
30... Qd6 {[%clk 0:00:05.7]} 31. Qa8+ {[%clk 0:00:06.4]} 31... Ke7 {[%clk
0:00:06.1]} 32. Bb3 {[%clk 0:00:05.6]} 32... Qd8 {[%clk 0:00:03.7]} 33. Qe4
{[%clk 0:00:05.4]} 33... Kf6 {[%clk 0:00:03.8]} 34. Nf4 {[%clk 0:00:05.4]} 34...
Bxf4 {[%clk 0:00:03.6]} 35. Qxf4+ {[%clk 0:00:05.9]} 35... Kg7 {[%clk
0:00:04.2]} 36. Qe5+ {[%clk 0:00:06.4]} 36... Kh6 {[%clk 0:00:04.1]} 37. h4
{[%clk 0:00:06.5]} 37... d3 {[%clk 0:00:02.5]} 38. cxd3 {[%clk 0:00:04.7]} 38...
Rg7 {[%clk 0:00:01.8]} 39. Qe3+ {[%clk 0:00:04.5]} 39... g5 {[%clk 0:00:02.4]}
40. Qe6+ {[%clk 0:00:03.2]} 40... Rg6 {[%clk 0:00:02.7]} 41. Qf5 {[%clk
0:00:02.5]} 41... gxh4 {[%clk 0:00:02.9]} 42. Bf7 {[%clk 0:00:02]} 42... Qg5
{[%clk 0:00:03.1]} 43. Bxg6 {[%clk 0:00:02.2]} 43... hxg6 {[%clk 0:00:02.6]} 44.
Qxb5 {[%clk 0:00:01.8]} 44... Qxb5 {[%clk 0:00:03]} 0-1

[Event "Late-Titled-Tuesday-Blitz-May-14-2024"]
[Site "Chess.com"]
[Date "2024.05.14"]
[Round "4"]
[White "BestestBP"]
[Black "PabloZarnicki"]
[Result "0-1"]
[WhiteElo "2182"]
[BlackElo "2560"]
[TimeControl "180+1"]
[EndTime "14:40:07 PDT"]
[Termination "PabloZarnicki won by checkmate"]

1. c4 {[%clk 0:03:00.5]} 1... Nf6 {[%clk 0:02:53.6]} 2. Nc3 {[%clk 0:02:57.3]}
2... g6 {[%clk 0:02:53.1]} 3. d4 {[%clk 0:02:57]} 3... Bg7 {[%clk 0:02:52.3]} 4.
Nf3 {[%clk 0:02:57.4]} 4... d6 {[%clk 0:02:52.1]} 5. g3 {[%clk 0:02:57.8]} 5...
O-O {[%clk 0:02:51.3]} 6. Bg2 {[%clk 0:02:58.4]} 6... c6 {[%clk 0:02:51.9]} 7.
O-O {[%clk 0:02:58.8]} 7... Bf5 {[%clk 0:02:49.6]} 8. Ne1 {[%clk 0:02:55.5]}
8... Qc8 {[%clk 0:02:47.6]} 9. e4 {[%clk 0:02:55.3]} 9... Bh3 {[%clk 0:02:45.8]}
10. Nf3 {[%clk 0:02:42.8]} 10... Bxg2 {[%clk 0:02:34]} 11. Kxg2 {[%clk
0:02:42.5]} 11... b5 {[%clk 0:02:32.7]} 12. cxb5 {[%clk 0:02:32.9]} 12... cxb5
{[%clk 0:02:33.6]} 13. e5 {[%clk 0:02:28.9]} 13... dxe5 {[%clk 0:02:26.1]} 14.
dxe5 {[%clk 0:02:27.9]} 14... Ng4 {[%clk 0:02:26.1]} 15. Nxb5 {[%clk 0:02:21.3]}
15... Qb7 {[%clk 0:02:18.7]} 16. Nd4 {[%clk 0:02:11.7]} 16... Rd8 {[%clk
0:02:14.9]} 17. Qb3 {[%clk 0:02:04.7]} 17... Qxb3 {[%clk 0:02:05.7]} 18. Nxb3
{[%clk 0:02:02]} 18... Nxe5 {[%clk 0:02:03.4]} 19. Nxe5 {[%clk 0:02:01.1]} 19...
Bxe5 {[%clk 0:02:04.3]} 20. Re1 {[%clk 0:02:01]} 20... Nc6 {[%clk 0:02:03.9]}
21. Bg5 {[%clk 0:01:42.6]} 21... Bxb2 {[%clk 0:02:00]} 22. Rab1 {[%clk
0:01:43.1]} 22... Bf6 {[%clk 0:01:46.4]} 23. Bxf6 {[%clk 0:01:40.2]} 23... exf6
{[%clk 0:01:47.3]} 24. Rbc1 {[%clk 0:01:40]} 24... Ne5 {[%clk 0:01:45.7]} 25.
Rc7 {[%clk 0:01:37.7]} 25... a5 {[%clk 0:01:44.1]} 26. f4 {[%clk 0:01:31.3]}
26... Nd3 {[%clk 0:01:44.3]} 27. Ree7 {[%clk 0:01:30.4]} 27... Rf8 {[%clk
0:01:44.3]} 28. a4 {[%clk 0:01:25]} 28... Nb4 {[%clk 0:01:36.6]} 29. Red7 {[%clk
0:00:46]} 29... f5 {[%clk 0:01:29.7]} 30. Rb7 {[%clk 0:00:25.2]} 30... Ra6
{[%clk 0:01:01.3]} 31. Nxa5 {[%clk 0:00:20.4]} 31... Nc2 {[%clk 0:00:53.1]} 32.
Nc4 {[%clk 0:00:10.5]} 32... Rxa4 {[%clk 0:00:50.4]} 33. Ne5 {[%clk 0:00:10.7]}
33... Ne3+ {[%clk 0:00:44.6]} 34. Kf3 {[%clk 0:00:09]} 34... Ra3 {[%clk
0:00:44.5]} 35. Nxf7 {[%clk 0:00:06.2]} 35... Ng4+ {[%clk 0:00:37]} 36. Kg2
{[%clk 0:00:06.3]} 36... Ra2+ {[%clk 0:00:36.3]} 37. Kg1 {[%clk 0:00:06.1]}
37... Rc8 {[%clk 0:00:30.3]} 38. Rdc7 {[%clk 0:00:05.3]} 38... Rxc7 {[%clk
0:00:25.1]} 39. Rxc7 {[%clk 0:00:06.2]} 39... Nxh2 {[%clk 0:00:21.9]} 40. Nh6+
{[%clk 0:00:05.9]} 40... Kf8 {[%clk 0:00:19.6]} 41. Rf7+ {[%clk 0:00:03.2]}
41... Ke8 {[%clk 0:00:18]} 42. Rxh7 {[%clk 0:00:03.9]} 42... Nf3+ {[%clk
0:00:17.4]} 43. Kf1 {[%clk 0:00:03.4]} 43... Rh2 {[%clk 0:00:16.9]} 44. Rh8+
{[%clk 0:00:03.3]} 44... Kd7 {[%clk 0:00:15.2]} 45. Rh7+ {[%clk 0:00:03.6]}
45... Kc6 {[%clk 0:00:14.7]} 46. Rh8 {[%clk 0:00:04]} 46... Kd5 {[%clk
0:00:14.1]} 47. Nf7 {[%clk 0:00:04.2]} 47... Ra2 {[%clk 0:00:10]} 48. Rd8+
{[%clk 0:00:04.2]} 48... Ke4 {[%clk 0:00:09.9]} 49. Re8+ {[%clk 0:00:04.5]}
49... Kd3 {[%clk 0:00:10.3]} 50. Rd8+ {[%clk 0:00:04.5]} 50... Nd4 {[%clk
0:00:10.2]} 51. Ne5+ {[%clk 0:00:04.2]} 51... Ke4 {[%clk 0:00:10.2]} 52. Nxg6
{[%clk 0:00:02.2]} 52... Kf3 {[%clk 0:00:10.1]} 53. Rd5 {[%clk 0:00:01.9]} 53...
Ra1# {[%clk 0:00:09.6]} 0-1

[Event "Late-Titled-Tuesday-Blitz-May-14-2024"]
[Site "Chess.com"]
[Date "2024.05.14"]
[Round "4"]
[White "SharathRk6"]
[Black "Bastiandash"]
[Result "1-0"]
[WhiteElo "2503"]
[BlackElo "2694"]
[TimeControl "180+1"]
[EndTime "14:40:09 PDT"]
[Termination "SharathRk6 won by checkmate"]

1. e4 {[%clk 0:03:00.9]} 1... c5 {[%clk 0:02:56]} 2. Nf3 {[%clk 0:03:00.1]} 2...
e6 {[%clk 0:02:56.6]} 3. d4 {[%clk 0:02:59.5]} 3... cxd4 {[%clk 0:02:55.9]} 4.
Nxd4 {[%clk 0:03:00.4]} 4... a6 {[%clk 0:02:54.9]} 5. Nc3 {[%clk 0:03:01]} 5...
b5 {[%clk 0:02:54]} 6. Be3 {[%clk 0:02:57.8]} 6... Bb7 {[%clk 0:02:53.2]} 7. f3
{[%clk 0:02:57.4]} 7... Qc7 {[%clk 0:02:52.9]} 8. Qd2 {[%clk 0:02:57.8]} 8...
Nf6 {[%clk 0:02:53.3]} 9. Be2 {[%clk 0:02:57.7]} 9... d5 {[%clk 0:02:51.8]} 10.
exd5 {[%clk 0:02:56.8]} 10... b4 {[%clk 0:02:52.4]} 11. Ne4 {[%clk 0:02:55.5]}
11... Nxd5 {[%clk 0:02:50.5]} 12. Bf2 {[%clk 0:02:52.5]} 12... Nd7 {[%clk
0:02:50.5]} 13. O-O {[%clk 0:02:51.5]} 13... Be7 {[%clk 0:02:47.2]} 14. c4
{[%clk 0:02:41.1]} 14... bxc3 {[%clk 0:02:47.1]} 15. Nxc3 {[%clk 0:02:41.1]}
15... Bd6 {[%clk 0:02:41.2]} 16. h3 {[%clk 0:02:34.3]} 16... Bh2+ {[%clk
0:02:33.4]} 17. Kh1 {[%clk 0:02:33.8]} 17... Bf4 {[%clk 0:02:34.3]} 18. Nxd5
{[%clk 0:02:32.1]} 18... Bxd5 {[%clk 0:02:35.2]} 19. Qc2 {[%clk 0:02:14.5]}
19... Qb7 {[%clk 0:02:33.5]} 20. Bc4 {[%clk 0:02:08.2]} 20... O-O {[%clk
0:02:28.8]} 21. Bxd5 {[%clk 0:02:07.1]} 21... Qxd5 {[%clk 0:02:29.7]} 22. Qb3
{[%clk 0:01:59.8]} 22... Qh5 {[%clk 0:02:17.2]} 23. Rad1 {[%clk 0:01:44.1]}
23... Nc5 {[%clk 0:02:12.9]} 24. Qc4 {[%clk 0:01:34.9]} 24... Rfc8 {[%clk
0:02:09.6]} 25. Qe2 {[%clk 0:01:34.1]} 25... e5 {[%clk 0:02:02.3]} 26. Nc2
{[%clk 0:01:29.4]} 26... Ne6 {[%clk 0:02:02.3]} 27. Ne3 {[%clk 0:01:00.6]} 27...
Nd4 {[%clk 0:01:57.2]} 28. Qd3 {[%clk 0:00:39.1]} 28... Qg6 {[%clk 0:01:47.9]}
29. Qxg6 {[%clk 0:00:36.7]} 29... hxg6 {[%clk 0:01:44.6]} 30. Nd5 {[%clk
0:00:37.3]} 30... Ne6 {[%clk 0:01:18.5]} 31. Ne7+ {[%clk 0:00:35.8]} 31... Kh7
{[%clk 0:01:18.3]} 32. Nxc8 {[%clk 0:00:35.4]} 32... Rxc8 {[%clk 0:01:19.2]} 33.
Rd7 {[%clk 0:00:31.8]} 33... f5 {[%clk 0:01:15.6]} 34. Rd6 {[%clk 0:00:30.9]}
34... Nf8 {[%clk 0:00:59]} 35. Rxa6 {[%clk 0:00:30]} 35... Rc2 {[%clk
0:00:57.8]} 36. b4 {[%clk 0:00:29.2]} 36... e4 {[%clk 0:00:52.3]} 37. fxe4
{[%clk 0:00:24.1]} 37... fxe4 {[%clk 0:00:45.6]} 38. Bd4 {[%clk 0:00:23.6]}
38... g5 {[%clk 0:00:12.7]} 39. g3 {[%clk 0:00:19.7]} 39... Ng6 {[%clk
0:00:12.5]} 40. Rxg6 {[%clk 0:00:18.3]} 40... Kxg6 {[%clk 0:00:07.9]} 41. gxf4
{[%clk 0:00:18.9]} 41... Rxa2 {[%clk 0:00:07.4]} 42. f5+ {[%clk 0:00:19.3]}
42... Kf7 {[%clk 0:00:07.3]} 43. b5 {[%clk 0:00:18.7]} 43... Ra4 {[%clk
0:00:06.7]} 44. Be3 {[%clk 0:00:17.9]} 44... Rb4 {[%clk 0:00:06.7]} 45. b6
{[%clk 0:00:17.7]} 45... Kf6 {[%clk 0:00:06.2]} 46. Kg2 {[%clk 0:00:16.9]} 46...
Rb3 {[%clk 0:00:06]} 47. Re1 {[%clk 0:00:17.4]} 47... Kxf5 {[%clk 0:00:06]} 48.
Bd4 {[%clk 0:00:17.3]} 48... g6 {[%clk 0:00:05]} 49. Rf1+ {[%clk 0:00:16.7]}
49... Ke6 {[%clk 0:00:05.5]} 50. Rf6+ {[%clk 0:00:16.5]} 50... Kd5 {[%clk
0:00:06.4]} 51. Bg1 {[%clk 0:00:16.6]} 51... e3 {[%clk 0:00:06.7]} 52. Rxg6
{[%clk 0:00:13.9]} 52... Rb2+ {[%clk 0:00:03.1]} 53. Kf3 {[%clk 0:00:13.8]}
53... e2 {[%clk 0:00:02.8]} 54. Bf2 {[%clk 0:00:14.3]} 54... e1=Q {[%clk
0:00:01.7]} 55. Bxe1 {[%clk 0:00:14.7]} 55... Ke5 {[%clk 0:00:01.1]} 56. Bc3+
{[%clk 0:00:13.9]} 56... Kf5 {[%clk 0:00:01.7]} 57. Rf6# {[%clk 0:00:14.1]} 1-0

[Event "Late-Titled-Tuesday-Blitz-May-14-2024"]
[Site "Chess.com"]
[Date "2024.05.14"]
[Round "4"]
[White "doublesik"]
[Black "Dhaydon19"]
[Result "1-0"]
[WhiteElo "2555"]
[BlackElo "2727"]
[TimeControl "180+1"]
[EndTime "14:40:12 PDT"]
[Termination "doublesik won by checkmate"]

1. d4 {[%clk 0:02:58.7]} 1... c6 {[%clk 0:03:00.6]} 2. c4 {[%clk 0:02:55.6]}
2... d5 {[%clk 0:03:00.9]} 3. Nf3 {[%clk 0:02:37.5]} 3... Nf6 {[%clk 0:02:45.6]}
4. e3 {[%clk 0:02:36.6]} 4... e6 {[%clk 0:02:35.5]} 5. b3 {[%clk 0:02:35.8]}
5... Bd6 {[%clk 0:02:35.5]} 6. Bb2 {[%clk 0:02:35.4]} 6... Ne4 {[%clk
0:02:35.3]} 7. Nbd2 {[%clk 0:02:34.7]} 7... f5 {[%clk 0:02:34.1]} 8. Bd3 {[%clk
0:02:29.4]} 8... O-O {[%clk 0:02:32.8]} 9. Ne5 {[%clk 0:02:27.6]} 9... Bb4
{[%clk 0:02:27.8]} 10. Bxe4 {[%clk 0:02:15.8]} 10... fxe4 {[%clk 0:02:26]} 11.
O-O {[%clk 0:02:15.2]} 11... Nd7 {[%clk 0:02:23.4]} 12. Nxd7 {[%clk 0:02:09.1]}
12... Bxd7 {[%clk 0:02:22.9]} 13. f3 {[%clk 0:02:08.8]} 13... Qg5 {[%clk
0:02:16.8]} 14. f4 {[%clk 0:02:02.9]} 14... Qg6 {[%clk 0:02:14.8]} 15. c5 {[%clk
0:01:53.5]} 15... Ba5 {[%clk 0:01:56.1]} 16. Qe2 {[%clk 0:01:15.3]} 16... Bc7
{[%clk 0:01:51.9]} 17. Kh1 {[%clk 0:01:12]} 17... h5 {[%clk 0:01:48.2]} 18. Bc3
{[%clk 0:01:00.6]} 18... b6 {[%clk 0:01:47]} 19. b4 {[%clk 0:00:59.1]} 19... a5
{[%clk 0:01:38.5]} 20. a4 {[%clk 0:00:47.1]} 20... bxc5 {[%clk 0:01:21.5]} 21.
bxc5 {[%clk 0:00:25.3]} 21... Bc8 {[%clk 0:01:18.5]} 22. Rfb1 {[%clk 0:00:24.6]}
22... Ba6 {[%clk 0:01:17.2]} 23. Qf2 {[%clk 0:00:25]} 23... Rfb8 {[%clk
0:01:14.1]} 24. Nb3 {[%clk 0:00:16.3]} 24... Bd3 {[%clk 0:01:12.1]} 25. Rb2
{[%clk 0:00:16.6]} 25... Rb7 {[%clk 0:01:08.1]} 26. Qd2 {[%clk 0:00:15.9]} 26...
Rab8 {[%clk 0:01:05.2]} 27. Nc1 {[%clk 0:00:15.9]} 27... Rxb2 {[%clk 0:01:03.6]}
28. Bxb2 {[%clk 0:00:16.8]} 28... Bc4 {[%clk 0:01:01.7]} 29. Bc3 {[%clk
0:00:16.9]} 29... Qg4 {[%clk 0:00:59.5]} 30. h3 {[%clk 0:00:07.5]} 30... Qg3
{[%clk 0:00:58.4]} 31. Ne2 {[%clk 0:00:07.6]} 31... Qf2 {[%clk 0:00:53.1]} 32.
Ng1 {[%clk 0:00:07.7]} 32... Qxd2 {[%clk 0:00:51.7]} 33. Bxd2 {[%clk 0:00:08.6]}
33... Rb2 {[%clk 0:00:51.5]} 34. Bc3 {[%clk 0:00:08]} 34... Rc2 {[%clk
0:00:45.1]} 35. Be1 {[%clk 0:00:08.4]} 35... Bb3 {[%clk 0:00:35.8]} 36. g4
{[%clk 0:00:07.8]} 36... hxg4 {[%clk 0:00:33.8]} 37. hxg4 {[%clk 0:00:08.7]}
37... g5 {[%clk 0:00:32.2]} 38. Nh3 {[%clk 0:00:07.9]} 38... gxf4 {[%clk
0:00:32.4]} 39. Nxf4 {[%clk 0:00:08.3]} 39... e5 {[%clk 0:00:32.6]} 40. Ne6
{[%clk 0:00:07.3]} 40... Bb8 {[%clk 0:00:30.4]} 41. Bxa5 {[%clk 0:00:06.5]}
41... exd4 {[%clk 0:00:29.2]} 42. Nxd4 {[%clk 0:00:06.7]} 42... Rb2 {[%clk
0:00:12.5]} 43. Bc3 {[%clk 0:00:06.8]} 43... Rh2+ {[%clk 0:00:11.5]} 44. Kg1
{[%clk 0:00:07.5]} 44... Bc4 {[%clk 0:00:11.6]} 45. Nxc6 {[%clk 0:00:07.7]}
45... Bg3 {[%clk 0:00:09.4]} 46. Be5 {[%clk 0:00:07.3]} 46... Bxe5 {[%clk
0:00:04.3]} 47. Nxe5 {[%clk 0:00:08]} 47... Rh3 {[%clk 0:00:03.9]} 48. Nxc4
{[%clk 0:00:07.8]} 48... dxc4 {[%clk 0:00:03.2]} 49. a5 {[%clk 0:00:08.2]} 49...
Rxe3 {[%clk 0:00:02.6]} 50. a6 {[%clk 0:00:08.7]} 50... Ra3 {[%clk 0:00:00.7]}
51. Rxa3 {[%clk 0:00:08.2]} 51... c3 {[%clk 0:00:01.5]} 52. Rxc3 {[%clk
0:00:08.1]} 52... Kf7 {[%clk 0:00:02.2]} 53. a7 {[%clk 0:00:08.6]} 53... Ke6
{[%clk 0:00:03.1]} 54. a8=Q {[%clk 0:00:09.1]} 54... Ke5 {[%clk 0:00:03.7]} 55.
c6 {[%clk 0:00:09.3]} 55... Kd4 {[%clk 0:00:04.6]} 56. c7 {[%clk 0:00:08.6]}
56... Kxc3 {[%clk 0:00:04.9]} 57. Qxe4 {[%clk 0:00:09.2]} 57... Kd2 {[%clk
0:00:04.9]} 58. c8=Q {[%clk 0:00:09]} 58... Kd1 {[%clk 0:00:05.8]} 59. Qcc2#
{[%clk 0:00:09.4]} 1-0